Cogmind - Beta 17 *** ADVENTURER MODE // 2026.08.07 @ 22:57:10 Player: Gder Result: Self-destructed Performance ------------- Evolutions (4) 2000 Regions Visited (6) 1200 Robots Destroyed (91) 455 Value Destroyed (3235) 3235 Prototype IDs (19) 380 Alien Tech Used (0) 0 Bonus (1059) 1059 TOTAL SCORE: 8329 Bonus ------- High Alert Combat Kills 259 Registered with UFD 300 Met Optimus in HQ 500 Cogmind --------- Core Integrity 478/850 Matter 195/300 Energy 144/150 System Corruption 3% Temperature Cool (-141) Movement Walking (120) Location -6/Factory Parts ------- > --- POWER (2) -------- Light Angular Momentum Engine > --- PROPULSION (5) --- Flexi-carbon Leg Armored Leg Armored Leg Armored Leg > --- UTILITY (5) ------ Improved Cryofiber Web Advanced Heat Sink Large Storage Unit Advanced Targeting Computer Layered Light Armor Plating > --- WEAPON (3) ------- Coil Gun Coil Gun Coil Gun > --- INVENTORY (15) --- Flexi-carbon Leg Improved Cryofiber Web Advanced Heat Sink Matter Compressor (167) Improved Signal Interpreter Heavy Armor Plating Improved Light Armor Plating Layered Light Armor Plating Heavy Plasma Cannon Coil Gun Coil Gun Coil Gun Heavy Pick Peak State ------------ > --- POWER ------------ Light Angular Momentum Engine Antimatter Reactor > --- PROPULSION ------- Armored Leg Armored Leg Armored Leg Armored Leg Armored Leg > --- UTILITY ---------- Improved Cooling System Large Storage Unit Gravity Neutralizer Experimental Terrain Scanner Thermal Defense Suite > --- WEAPON ----------- Heavy Battle Rifle Heavy Battle Rifle Coil Gun > --- INVENTORY -------- Carbon-fiber Leg Flexi-carbon Leg Armored Leg Large Matter Pod Centrium Medium Armor Plating Heavy Plasma Cannon Coil Gun Coil Gun Coil Gun Coil Gun Coil Gun Coil Gun Heavy Pick [Rating: 82] Favorites ----------- Power Antimatter Reactor Engine Improved Ion Engine Reactor Antimatter Reactor Propulsion Armored Leg Treads Advanced Treads Leg Armored Leg Wheel Wheel Utility Seismic Detector Device Seismic Detector Storage Medium Storage Unit Processor Advanced Targeting Computer Protection Layered Medium Armor Plating Weapon Coil Gun Energy Cannon Heavy Plasma Cannon Ballistic Gun Coil Gun Ballistic Cannon Improved Light Cannon Special Weapon Mining Laser Build | -11 -10 -10 -9 -6 -6 -6 ------- Run | Yrd Mat Sub Scr Fac Was Fac Slots Evolved 8 | . . . . 8 . . Power 1 | . . . . 1 . . Propulsion 3 | . . . . 3 . . Utility 3 | . . . . 3 . . Weapon 1 | . . . . 1 . . Parts Attached 66 | 7 7 3 2 5 4 38 Power 9 | 1 . 1 . . 2 5 Engine 7 | 1 . 1 . . . 5 Core . | . . . . . . . Reactor 2 | . . . . . 2 . Propulsion 16 | 2 1 . 1 3 . 9 Treads 3 | . . . . 3 . . Leg 9 | . . . . . . 9 Wheel 4 | 2 1 . 1 . . . Hover . | . . . . . . . Flight . | . . . . . . . Utility 21 | 2 1 1 . 2 1 14 Device 10 | 1 . . . 1 . 8 Storage 3 | 1 1 . . . . 1 Processor 1 | . . . . . . 1 Hackware . | . . . . . . . Protection 7 | . . 1 . 1 1 4 Artifact . | . . . . . . . Weapon 20 | 2 5 1 1 . 1 10 Energy Gun . | . . . . . . . Energy Cannon 1 | . . . . . . 1 Ballistic Gun 12 | 2 . . 1 . . 9 Ballistic Cannon 6 | . 4 1 . . 1 . Launcher . | . . . . . . . Special Weapon 1 | . 1 . . . . . Impact Weapon . | . . . . . . . Slashing Weapon . | . . . . . . . Piercing Weapon . | . . . . . . . Special Melee Weapon . | . . . . . . . Unidentified Prototypes 3 | . . . . . 1 2 Parts Lost 15 | . . . . . . 15 Power 3 | . . . . . . 3 Propulsion 3 | . . . . . . 3 Utility 4 | . . . . . . 4 Weapon 5 | . . . . . . 5 Highest Loss Streak 4 | . . . . . . 4 To Critical Strikes . | . . . . . . . Average Backups 10 | 1 9 9 9 8 9 12 Power . | . . . . . . . Propulsion 2 | . 3 4 3 4 1 2 Utility 2 | . 2 2 2 . 3 3 Weapon 4 | . 3 3 3 2 3 6 Tool/Special . | . . . . . . . Unused Backups 40 | . 10 2 4 . 5 19 Power 1 | . 1 . . . . . Propulsion 11 | . 2 1 1 . 4 3 Utility 13 | . . 1 3 . 1 8 Weapon 14 | . 7 . . . . 7 Tool/Special 1 | . . . . . . 1 Average Slot Usage (%) 93 | . 100 100 87 61 89 96 Engine 9 | . 14 14 14 6 4 5 Reactor 3 | . . . . . 6 7 Treads 3 | . . . . 10 20 4 Leg 10 | . . . . . . 26 Wheel 10 | . 28 28 15 6 6 1 Device 14 | . 14 11 14 12 13 16 Storage 9 | . 14 14 14 6 6 6 Protection 4 | . . 2 . 5 12 6 Ballistic Gun 11 | . 9 . 8 6 6 18 Ballistic Cannon 10 | . 12 26 19 6 11 1 Peak Build Rating 82 | 7 9 11 20 42 68 82 Average Rating 44 | 5 8 10 18 38 61 74 On Entrance 22 | . 7 9 11 20 42 68 Avg Prop Armor Cover (%) 12 | . . . . 16 12 11 Naked Turns . | . . . . . . . Heaviest Build 84 | 12 20 28 26 35 71 84 Greatest Support 92 | 20 20 20 28 44 28 92 Greatest Overweight (x) 2 | . . 1 1 1 2 2 Average Overweight (x) . | . . . . . 1 . Largest Inventory Capacity 15 | 8 10 10 10 10 10 15 Average Capacity 11 | 7 9 10 10 10 10 13 Most Carried 15 | 4 10 10 10 10 10 15 Average Carried 11 | 2 9 9 9 8 9 13 Final Capacity 15 | 8 10 10 10 10 10 15 Final Carried 14 | 4 10 10 10 8 10 14 Class Distribution -------------------- 50% | Mutant 17% | Scavenger-Tank 15% | Tank 11% | Scavenger-Gunner 4% | Scavenger-Skirmisher Dominant Class ---------------- Mutant | -10/Materials Mutant | -10/Subcaves Mutant | -9/Scraptown Mutant | -6/Factory Tank | -6/Waste Scavenger-Tank | -6/Factory Resources | -11 -10 -10 -9 -6 -6 -6 ----------- Run | Yrd Mat Sub Scr Fac Was Fac Matter Collected 3422 | 290 197 215 74 . 140 2506 Remotely . | . . . . . . . Salvage Created 4073 | 73 188 130 . . . 3682 Parts 214 | 4 19 9 . . . 182 Haulers Intercepted 2 | . 1 . . . . 1 Recyclers Shooed 4 | . 1 . . . . 3 Parts Field Recycled . | . . . . . . . Retrieved Matter . | . . . . . . . Parts Self-Destructed 8 | . . 8 . . . . Prevented . | . . . . . . . Parts Restored . | . . . . . . . Kills | -11 -10 -10 -9 -6 -6 -6 ------- Run | Yrd Mat Sub Scr Fac Was Fac Combat Hostiles Destroyed 69 | . 6 7 . . . 56 Guns 60 | . 4 . . . . 56 Cannons 9 | . 2 7 . . . . Classes Destroyed 12 | 2 3 3 . . . 4 Worker 6 | . . . . . . 6 Builder 4 | . . . . . . 4 Tunneler 3 | 1 2 . . . . . Hauler 2 | . 1 . . . . 1 Recycler 4 | 1 . . . . . 3 Watcher 3 | . 3 . . . . . Swarmer 21 | . 6 3 . . . 12 Grunt 29 | . . 1 . . . 28 Sentry 7 | . . 1 . . . 6 Hunter 6 | . . . . . . 6 Programmer 4 | . . . . . . 4 Subdweller 2 | . . 2 . . . . Best Kill Streak 9 | 1 4 3 . . . 9 Combat Bots Only 7 | . 3 3 . . . 7 Max Kills in Single Turn 2 | 1 1 1 . . . 2 Gunslinging 1 | . . . . . . 1 Exploded . | . . . . . . . Melee . | . . . . . . . Uniques/NPCs Destroyed . | . . . . . . . Combat | -11 -10 -10 -9 -6 -6 -6 -------- Run | Yrd Mat Sub Scr Fac Was Fac Hostile Shots Fired 667 | . 24 36 . . . 607 Missed 242 | . 7 10 . . . 225 Hits 425 | . 17 26 . . . 382 Melee 1 | . . . . . . 1 Projectile 424 | . 17 26 . . . 381 Critical Strikes 5 | . 1 . . . . 4 Damage Taken 4610 | . 101 261 . . . 4248 Core 432 | . 19 41 . . . 372 Absorbed by Shields . | . . . . . . . Ignored by Resistances 1386 | . 34 77 . . . 1275 Core Remaining (%) 88 | 100 . . 76 . . . Volleys Fired 229 | 5 35 19 . . . 170 Largest 3 | 2 2 2 . . . 3 Hottest 130 | 40 130 66 . . . 96 Shots Fired 610 | 10 66 38 . . . 496 Gun 537 | 10 36 . . . . 491 Cannon 67 | . 24 38 . . . 5 Launcher . | . . . . . . . Special 6 | . 6 . . . . . Kinetic 599 | 10 60 38 . . . 491 Thermal 11 | . 6 . . . . 5 Explosive . | . . . . . . . Electromagnetic . | . . . . . . . Robot Hit Streak 29 | 10 27 26 . . . 29 Robot Miss Streak 4 | . 2 3 . . . 4 Penetration Max 2 | . . . . . . 2 Secondary Targets 19 | . . . . . . 19 Max Gunslinging Chain 1 | . . . . . . 1 Shots Hit Robots 459 | 10 41 27 . . . 381 Core Hits 180 | 4 14 9 . . . 153 Critical Kills 7 | . . . . . . 7 Critical Parts Destroyed 9 | . . . . . . 9 Critical Strikes 16 | . . . . . . 16 Destroy 16 | . . . . . . 16 Melee Attacks . | . . . . . . . Impact . | . . . . . . . Slashing . | . . . . . . . Piercing . | . . . . . . . Sneak Attacks . | . . . . . . . Combat Hostiles . | . . . . . . . Follow-up Attacks . | . . . . . . . Damage Inflicted 9700 | 102 604 508 . . . 8486 Guns 8822 | 102 293 . . . . 8427 Cannons 819 | . 311 508 . . . . Explosions . | . . . . . . . Melee . | . . . . . . . Ramming 59 | . . . . . . 59 Kinetic 9641 | 102 604 508 . . . 8427 Thermal . | . . . . . . . Explosive . | . . . . . . . Electromagnetic . | . . . . . . . Impact . | . . . . . . . Slashing . | . . . . . . . Piercing . | . . . . . . . Highest Corruption 5 | . . . . . . 5 Average Corruption 3 | . . . . . . 3 Corruption Purged 5 | . . . . . . 5 Corruption Blocked . | . . . . . . . Effects 16 | . . . . . . 16 Message Errors 5 | . . . . . . 5 Matter Fused 3 | . . . . . . 3 Energy Discharges 1 | . . . . . . 1 Data Loss (major) 3 | . . . . . . 3 Misfires 1 | . . . . . . 1 Alerts 1 | . . . . . . 1 Weapon Failures 2 | . . . . . . 2 Overload Shots . | . . . . . . . Overflow Damage 5 | . 4 . . . . 1 Projectiles 4 | . 4 . . . . . Explosions . | . . . . . . . Melee 1 | . . . . . . 1 Knockbacks 9 | . 7 1 . . . 1 Impact 1 | . . . . . . 1 Kinetic 7 | . 6 1 . . . . Secondary 1 | . 1 . . . . . Self-Inflicted Damage . | . . . . . . . Shots . | . . . . . . . Rammed . | . . . . . . . Targets Rammed 4 | . . . . . . 4 Kicked 4 | . . . . . . 4 Crushed . | . . . . . . . Highest Temperature 339 | . 30 . . . . 339 Average Temperature 103 | . 14 . . . . 135 Received Heat Transfer 1299 | . . 57 . . . 1242 Effects 1 | . . . . . . 1 Energy Bleed 1 | . . . . . . 1 Siege Activations . | . . . . . . . Martial Activations . | . . . . . . . Shielding Activations . | . . . . . . . Robots Disrupted . | . . . . . . . Combat Hostiles . | . . . . . . . Robots Corrupted 1 | . . . . . . 1 Combat Hostiles . | . . . . . . . Parts Fried 2 | . . . . . . 2 Impact Corruptions 1 | . . . . . . 1 Robots Melted . | . . . . . . . Combat Hostiles . | . . . . . . . Parts Melted . | . . . . . . . Heat Transferred . | . . . . . . . Parts Sabotaged 2 | . . . . . . 2 Parts Stolen . | . . . . . . . Parts Stripped . | . . . . . . . Power Chain Reactions . | . . . . . . . Alert | -11 -10 -10 -9 -6 -6 -6 ------- Run | Yrd Mat Sub Scr Fac Was Fac Maximum Alert Level 2 | . . . . . . 2 Low Security (%) 58 | 100 100 . . 100 100 35 Level 1 16 | . . . . . . 24 Level 2 25 | . . . . . . 40 Level 3 . | . . . . . . . Level 4 . | . . . . . . . Level 5 . | . . . . . . . High Security . | . . . . . . . Max Security . | . . . . . . . Peak Influence 625 | 5 84 . . . . 625 Initial . | . . . . . . . Average 197 | 1 16 . . . . 301 Influence Increases 2162 | 10 211 110 . . . 1831 Destroy 0b10 Robot/C 1340 | . 120 100 . . . 1120 Destroy 0b10 Robot/NC 115 | 10 30 . . . . 75 Destroy Leader 300 | . 28 10 . . . 262 Successful Hack 76 | . 26 . . . . 50 Disable Machine 108 | . . . . . . 108 Destroy Structure 28 | . 7 . . . . 21 Partial Spotted 30 | . . . . . . 30 Lose Combat Pursuer 165 | . . . . . . 165 Influence Decreases 1829 | 10 211 90 20 . . 1498 Entered New Map 20 | . . . 20 . . . Time Decay 1509 | 10 211 90 . . . 1198 Lost Part 150 | . . . . . . 150 Purge Threat 150 | . . . . . . 150 Squads Dispatched 22 | . . . . . . 22 Investigation 7 | . . . . . . 7 Extermination 5 | . . . . . . 5 Reinforcement 5 | . . . . . . 5 Assault . | . . . . . . . Garrison 5 | . . . . . . 5 Intercept . | . . . . . . . Searches Triggered . | . . . . . . . Construction Impeded 1 | . . . . . . 1 Haulers Reinforced 1 | . . . . . . 1 Active Scanning Responses . | . . . . . . . Cargo Convoy Interrupts 1 | . . . . . . 1 Stealth | -11 -10 -10 -9 -6 -6 -6 --------- Run | Yrd Mat Sub Scr Fac Was Fac Distress Signals 2 | . . . . . . 2 Communications Jammed . | . . . . . . . Distress Signals . | . . . . . . . Times Spotted 106 | . 14 8 . . . 84 Peak Tracking Total 8 | . 4 3 . . . 8 Tactical Retreats 10 | . . . . . . 10 Traps | -11 -10 -10 -9 -6 -6 -6 ------- Run | Yrd Mat Sub Scr Fac Was Fac Traps Triggered 8 | . . . . 1 . 7 Indirectly . | . . . . . . . Trap Hack Attempts . | . . . . . . . Triggered . | . . . . . . . Disarmed . | . . . . . . . Reprogrammed . | . . . . . . . Reused . | . . . . . . . Traps Extracted . | . . . . . . . Installed . | . . . . . . . Triggered . | . . . . . . . Machines | -11 -10 -10 -9 -6 -6 -6 ---------- Run | Yrd Mat Sub Scr Fac Was Fac Machines Disabled 12 | . . . . . . 12 Max in Single Turn 2 | . . . . . . 2 Garrison Access 1 | . . . . . . 1 Machines Repaired . | . . . . . . . Machines Dismantled . | . . . . . . . Machines Sabotaged . | . . . . . . . Overloaded Fab Kills . | . . . . . . . Hacking | -11 -10 -10 -9 -6 -6 -6 --------- Run | Yrd Mat Sub Scr Fac Was Fac Machines Accessed 37 | . 8 . 11 . . 18 Terminals 15 | . 8 . . . . 7 Fabricators 1 | . . . . . . 1 Repair Stations 2 | . . . . . . 2 Recycling Units 5 | . . . . . . 5 Scanalyzers 2 | . . . . . . 2 Garrison Access 1 | . . . . . . 1 Total Hacks 140 | . 26 . 78 . . 36 Successful 110 | . 15 . 78 . . 17 Failed 29 | . 11 . . . . 18 Catastrophic 3 | . . . . . . 3 Database Lockouts 1 | . . . . . . 1 Manual 28 | . 16 . . . . 12 Terminals 42 | . 26 . . . . 16 Fabricators 2 | . . . . . . 2 Repair Stations 7 | . . . . . . 7 Recycling Units 6 | . . . . . . 6 Scanalyzers 4 | . . . . . . 4 Garrison Access 1 | . . . . . . 1 Terminal Hacks 90 | . 8 . 78 . . 4 Record 78 | . . . 77 . . 1 Prototype ID Bank 1 | . 1 . . . . . Terminal Index 2 | . 1 . . . . 1 Recycling Unit Index 1 | . . . . . . 1 Scanalyzer Index 1 | . 1 . . . . . Unreport Threat 1 | . . . . . . 1 Locate Traps 1 | . 1 . . . . . Security Status 1 | . 1 . . . . . Hauler Manifests 1 | . 1 . . . . . Registered Components 1 | . 1 . . . . . Zone Layout 1 | . 1 . . . . . Proto ID Catalog 1 | . . . 1 . . . Fabricator Hacks 2 | . . . . . . 2 Network Status 1 | . . . . . . 1 Build 1 | . . . . . . 1 Repair Station Hacks 1 | . . . . . . 1 Scan Component 1 | . . . . . . 1 Recycling Unit Hacks . | . . . . . . . Scanalyzer 2 | . . . . . . 2 Retrieve Study 2 | . . . . . . 2 Garrison Access Hacks 1 | . . . . . . 1 Seal Access 1 | . . . . . . 1 Unauthorized Hacks 14 | . 7 . . . . 7 Terminals 9 | . 7 . . . . 2 Botnet 4 | . 2 . . . . 2 Skim 5 | . 5 . . . . . Fabricators . | . . . . . . . Repair Stations . | . . . . . . . Recycling Units 5 | . . . . . . 5 Fedlink 5 | . . . . . . 5 Scanalyzers . | . . . . . . . Garrison Access . | . . . . . . . Data Cores Recovered . | . . . . . . . Used . | . . . . . . . Hacking Detections 19 | . 8 . . . . 11 Full Trace Events 2 | . . . . . . 2 Feedback Events . | . . . . . . . Feedback Blocked . | . . . . . . . Robot Schematics Acquired . | . . . . . . . Robots Built . | . . . . . . . Authchips . | . . . . . . . Time . | . . . . . . . Total Robot Build Rating . | . . . . . . . Part Schematics Acquired . | . . . . . . . Parts Built 2 | . . . . . . 2 Authchips . | . . . . . . . Time 95 | . . . . . . 95 Total Part Build Rating 10 | . . . . . . 10 Part Studies Acquired 1 | . . . . . . 1 Parts Repaired . | . . . . . . . Time . | . . . . . . . Parts Recycled . | . . . . . . . Recycled Matter . | . . . . . . . Retrieved Matter . | . . . . . . . Retrieved Components . | . . . . . . . Parts Scanalyzed . | . . . . . . . Part Schematics Acquired . | . . . . . . . Parts Damaged . | . . . . . . . Bothacking | -11 -10 -10 -9 -6 -6 -6 ------------ Run | Yrd Mat Sub Scr Fac Was Fac Used RIF Installer . | . . . . . . . Robots Hacked . | . . . . . . . Non-combat . | . . . . . . . Combat . | . . . . . . . Robot Hacks Applied . | . . . . . . . Relay Couplers Released . | . . . . . . . Fabnet Peak Effective % . | . . . . . . . Robots Rewired . | . . . . . . . Allies Hacked . | . . . . . . . Hacks Repelled . | . . . . . . . Allies | -11 -10 -10 -9 -6 -6 -6 -------- Run | Yrd Mat Sub Scr Fac Was Fac Total Allies . | . . . . . . . Largest Group . | . . . . . . . Highest-Rated Group . | . . . . . . . Highest-Rated Ally . | . . . . . . . Initial UFD Resources 22 | . . . . 22 22 22 Total Orders . | . . . . . . . Ally Attacks . | . . . . . . . Total Damage . | . . . . . . . Kills . | . . . . . . . Allies Corrupted . | . . . . . . . Allies Melted . | . . . . . . . Intel | -11 -10 -10 -9 -6 -6 -6 ------- Run | Yrd Mat Sub Scr Fac Was Fac Active Infowar (turns) 5978 | 7 825 377 1973 59 629 2108 Terrain 2794 | . . . . 57 629 2108 Seismic 5316 | 7 825 377 1973 59 629 1446 Robot Analysis Total . | . . . . . . . Derelict Logs Recovered 1 | . . . 1 . . . Drone Launches . | . . . . . . . Drone Recoveries . | . . . . . . . Exploration | -11 -10 -10 -9 -6 -6 -6 ------------- Run | Yrd Mat Sub Scr Fac Was Fac Turns Passed 6884 | 68 825 449 1973 59 629 2881 Spaces Moved 5360 | 50 761 394 1974 44 471 1666 Core 1 | 1 . . . . . . Treads 11 | . . . . 2 . 9 Legs 1293 | . . . . . . 1293 Wheels 4055 | 49 761 394 1974 42 471 364 Hover . | . . . . . . . Flight . | . . . . . . . Fastest Speed 50 | 50 80 80 95 100 115 120 Average Speed 106 | 79 80 92 99 117 127 123 Slowest Speed 225 | 80 80 95 100 225 130 225 Overloaded Moves . | . . . . . . . Propulsion Burnouts . | . . . . . . . Robots Hopped . | . . . . . . . Potential Cave-ins . | . . . . . . . Cave-ins Triggered . | . . . . . . . Exploration Rate (%) 51 | 4 99 28 94 1 97 40 Regions Visited 6 Branch Regions 2 Pre-discovered Areas 2 | . . . 1 . . 1 Known Exits Taken 1 | . 1 . . . . . Unknown Exits Taken 3 | 1 . 1 1 . . . Scrap Searched 3 | . . . 3 . . . Spaces Dug 8 | . 4 . . . . 4 Terrain Destroyed 29 | . 5 . . . . 24 Melee . | . . . . . . . Projectile 26 | . 5 . . . . 21 AOE . | . . . . . . . Terrain Rammed . | . . . . . . . Walls Destroyed . | . . . . . . . Machines Disabled . | . . . . . . . Actions | -11 -10 -10 -9 -6 -6 -6 --------- Run | Yrd Mat Sub Scr Fac Was Fac Total 6068 | 65 910 438 1994 51 501 2109 Wait 248 | . 70 12 . . . 166 Move 5355 | 49 760 393 1973 44 470 1666 Hop . | . . . . . . . Pick Up 65 | 4 20 2 9 1 8 21 Fast Attach 42 | 7 1 . 2 3 4 25 Attach 13 | . 1 . . 2 1 9 Detach 5 | . 1 . . . . 4 Swap 30 | . 5 8 . . 2 15 Drop 70 | . 17 4 10 1 9 29 Fire 229 | 5 35 19 . . . 170 Melee . | . . . . . . . Ram . | . . . . . . . Kick 4 | . . . . . . 4 Crush . | . . . . . . . Escape Stasis . | . . . . . . . Rewire 7 | . . . . . 7 . Trap . | . . . . . . . Miscellaneous . | . . . . . . . Route ------- -11/Scrapyard -10/Materials (discovered 5 exits: *Mat x3 / [*Min] / *Sub) -10/Subcaves (discovered 3 exits: *Mat x2 / *Scr) -9/Scraptown (discovered 2 exits: [*Fac x2]) -6/Factory -6/Waste -6/Factory (discovered 1 exit: [*Fac]) History --------- Turn | Location | Event 24 | -11/Scrapyard | Discovered new exit (range 14) 69 | -11/Scrapyard | Entered Materials 208 | -10/Materials | Discovered new exit (range 16) 316 | -10/Materials | Build established: Mutant 414 | -10/Materials | Discovered new exit (range 8) 552 | -10/Materials | Discovered new exit (range 16) 674 | -10/Materials | Identified exit to Materials 674 | -10/Materials | Identified exit to Subcaves 782 | -10/Materials | Learned location of 2 exits from Mines 848 | -10/Materials | Learned 2 Storage zone layouts 876 | -10/Materials | Learned Storage emergency access door positions 894 | -10/Materials | Entered Subcaves 895 | -10/Subcaves | Approached by a straggling Scientist 895 | -10/Subcaves | Identified exit to Materials 1301 | -10/Subcaves | Scientist uncovered a shortcut to Scraptown 1343 | -10/Subcaves | Entered Scraptown 1700 | -9/Scraptown | Scanned Subdweller tech in exchange for log data 1703 | -9/Scraptown | Learned location of Zion (-6) 1718 | -9/Scraptown | Discovered new exit (range 5) 1797 | -9/Scraptown | Visited Cave Peace 1824 | -9/Scraptown | Visited Spacefarers 1885 | -9/Scraptown | Visited Assassins FH 1918 | -9/Scraptown | Visited Awakened 1951 | -9/Scraptown | Visited Supply Room 2116 | -9/Scraptown | Visited Cyclists 2143 | -9/Scraptown | Visited Symbiants 2184 | -9/Scraptown | Visited UFD Registry 2184 | -9/Scraptown | Registered with UFD as "Protongunner" 2206 | -9/Scraptown | Entered Cyclist Reading Room 2255 | -9/Scraptown | Visited Curators Association 2299 | -9/Scraptown | Visited Scrap Suit Storage 2569 | -9/Scraptown | Delivered Scrap Shield to a Scientist 2690 | -9/Scraptown | Visited Science Guys 2721 | -9/Scraptown | Visited Derelict Rescue Squad 2747 | -9/Scraptown | Visited Supply Room 2763 | -9/Scraptown | Visited Infowarlord's Domain 2780 | -9/Scraptown | Found Exp. Terrain Scanner 2802 | -9/Scraptown | Visited Chapter 10 2823 | -9/Scraptown | Visited LU-1G1's Boring Crew 2872 | -9/Scraptown | Visited Observation Area 3004 | -9/Scraptown | Discovered new exit (range 3) 3251 | -9/Scraptown | Met Optimus 3251 | -9/Scraptown | Accepted into 0bPrime 3316 | -9/Scraptown | Entered Factory 3316 | -6/Factory | Evolved 8 slots: Power x1, Propulsion x3, Utility x3, Weapon x1 3375 | -6/Factory | Sucked down chute 3375 | -6/Factory | Entered Waste 3375 | -6/Waste | The area was eerily silent 3809 | -6/Waste | Build established: Tank 3864 | -6/Waste | Discovered new exit (range 26) 3999 | -6/Waste | Found Heavy Servo Lattice 4004 | -6/Waste | Entered Factory 4085 | -6/Factory | Loaded intel: 8 recycling unit locations 4148 | -6/Factory | Fabricated Cloaking Device? 4539 | -6/Factory | Garrison activated, responded to threat 4864 | -6/Factory | Build established: Scavenger-Tank 5051 | -6/Factory | Learned location of Protoforge (-2) 5484 | -6/Factory | Lost 4 parts (1p1u2w) 5667 | -6/Factory | Allied Derelicts emerged from ambush trap array 5726 | -6/Factory | Central database locked down 6038 | -6/Factory | Garrison activated, responded to threat 6094 | -6/Factory | Destroyed 7 combat bots 6095 | -6/Factory | Lost 4 parts (1p1n2w) 6414 | -6/Factory | Build established: Scavenger-Gunner 6725 | -6/Factory | Discovered new exit (range 7) 6883 | -6/Factory | Cargo convoy interrupted 6885 | -6/Factory | Self-destructed Last Messages --------------- 06874_ Slug penetrates Wall. 06876_ Slug penetrates H-66 Slayer. 06876_ Assembly Bed disabled. 06877_ Penetrated by Slug. 06877_ Assembly Bed disabled. 06880_ Penetrated by Slug. 06882_ C-45 Heavy ARC bursts open, deploying its payload. 06882_ P-60 Hacker unfolds itself. 06882_ H-66 Slayer unfolds itself. 06882_ X-62 Marksman unfolds itself. 06882_ X-67 Chaingunner unfolds itself. 06882_ E-15 Imp unfolds itself. 06882_ Penetrated by Slug. 06882_ Lyr. Light Armor Plating blown off. 06882_ Flexi-carbon Leg blown off. 06882_ E-15 Imp destroyed. 06883_ ALERT: Cargo convoy interrupted, initiating access lockdown. 06883_ Penetrated by Slug. 06883_ Lgt. Angular Momentum Engine destroyed. 06884_ Acquired Lyr. Light Armor Plating. Map ----- +----------------------------------------------------+ | """" """" # # ?? ????????????????????????????? | | """" """" !# # ??"????????????????????????????? | | """" """" # # ? "??????????????????? ?????? | | "??" """" # # " "??????????????????? #???? | | ?? # # " " " " ?????????????? ? | | ############# # " " " " ?????????????# | | ! # # " " " " #????????????+ | | ??""" # # " " " " #????????????# | | ??""" / # " " " " #????????????# | | ??""" ""T"" # # " " " " #????????????# | | ????? """"" # # #????????????# | | ??????#####?# # #????????????# | | ??????####### # #????????????# | | ?????? # / #????????????+ | | ?????""" # # #???########## | | ????"""" # ############### # | | ???""""" ! # # ? # """"" # < | | ???""""" # # """" """" # ""T"" # | | ???? # # """" """" # # ###?? | | ????"""" # # """" """" # + #???? | | ????"""" # # """" """"i + """ # ^#???? | | ????"""" # # """" """ ; """ #^ #???? | | ?""""""" # # """ """xx # """ # #???? | | + + = phA# # #???? | | # # h=%= ! ########## #???? | | ############# ########/@;####????????# #???? | | ???######### #????## #####?????????# #???? | | ???# [ # **######=! # #####?????# +???? | | ???# + %==%*[= [ #?????# #???? | | ???# [ ! # !%###### # #####?????# +???? | | ???######### ! #????########??????####+#+####### | | ???????????### ###??????????????????# ! # | | ?????????????# #????????????????????# # | | ?????????????# #?????????############ """""" # | | ?????????????# ?? + """""" # | | ?????????????# #?????????############ """""" # | | ?????????????# #????????????????????# """"""??? | | ?????????????# #????????????????????# ???? | | ?????????????? #????????????????????# """"""??? | | ?????????????? ?????????????????????# """""???? | | ?????????????? ?????????????????????# """""???? | | ?????????????? ?????????????????????# """?????? | | ?????????????? ?????????????????????# ?????? | | ?????????????? ?????????????????????########?????? | | ?????????????? ??????????????????????????????????? | | ?????????????????????????????????????????????????? | | ?????????????????????????????????????????????????? | | ?????????????????????????????????????????????????? | | ?????????????????????????????????????????????????? | | ?????????????????????????????????????????????????? | +----------------------------------------------------+ Best States ------------- Heat Dissipation 75 Energy Generation 37 Energy Capacity 550 Matter Stores 300 Matter Capacity 300 Sight Range 16 Terrain Scan Range 30 Terrain Scan Density 10 Additional Mass Support 12 Base Temperature (-) 150 Armor Coverage 450 Resistance: KI 20 Resistance: TH 40 Resistance: EX 20 Resistance: EM 20 Resistance: I 20 Resistance: S 20 Resistance: P 20 Evasion (%) 55 Targeting Accuracy 8 Recoil Reduction 3 Offensive Hacking 10 Item Schematics ----------------- None Robot Schematics ------------------ None Fabricated ------------ Cloaking Device | x2 | -6/Factory | Preloaded Repaired ---------- Nothing Studied --------- Coil Gun | -6/Factory | Hacked Alien Tech Used ----------------- None Achievements -------------- Bob, First Of His Name Challenges ------------ None Game ------ Seed AntisysDataBeam Manual? 0 Play Time 01:29:25 Cumulative 196.1 hours Start 2026.07.27 @ 01:44:31 End 2026.08.07 @ 22:57:10 Sessions 3 Manual Loads 0 Difficulty Adventurer Special Mode None Game No. 78 Rogue 0 Adventurer 74 Explorer 4 Win Type - Total 5 Types 4/0/0/1/0/0/0/0/0/0 Lore% 48 Gallery% 52 Achievement% 46 Wizard Run 0 Options --------- Layout 0 ASCII 0 Keyboard 1 Movement Numpad Keybinds 0 Fullscreen 2 Font 36/Smallcaps Map View 76x50 Zoom Use 0% Tactical HUD 1 Map Filters NONE Filters NONE Steam 1 RUN: ac63db33-c19a-4167-9190-e01a2b888ae7